Workbook

Sheet CP-Ville (hidden)
A1: Recherche | B1: Code | C1: COMMUNE | F1: C
A2: =B2*100+1 -> 6446001 | B2: 64460 | C2: AAST | F2: =F1*100+1 ->  | G2: =VLOOKUP(F2,A2:C38951,3,FALSE) -> 
A3: =B3*100+1 -> 5513001 | B3: 55130 | C3: ABAINVILLE | F3: =F1*100+2 ->  | G3: =VLOOKUP(F3,A3:C38952,3,FALSE) -> 
A4: 5926501 | B4: 59265 | C4: ABANCOURT | F4: =F1*100+3 -> 
A5: 6022001 | B5: 60220 | C5: ABANCOURT | F5: =F1*100+4 -> 
A6: 5461001 | B6: 54610 | C6: ABAUCOURT | F6: =F1*100+5 -> 
A7: 5540001 | B7: 55400 | C7: ABAUCOURT HAUTECOURT | F7: =F1*100+6 -> 
A8: 2532001 | B8: 25320 | C8: ABBANS DESSOUS | F8: =F1*100+7 -> 
A9: 2544001 | B9: 25440 | C9: ABBANS DESSUS | F9: =F1*100+8 -> 
A10: 4417001 | B10: 44170 | C10: ABBARETZ | F10: =F1*100+9 -> 
A11: 2024301 | B11: 20243 | C11: ABBAZIA | F11: =F1*100+10 -> 
A12: 230001 | B12: 02300 | C12: ABBECOURT | F12: =F1*100+11 -> 
A13: 6043001 | B13: 60430 | C13: ABBECOURT | F13: =F1*100+12 -> 
A14: 2534001 | B14: 25340 | C14: ABBENANS | F14: =F1*100+13 -> 
A15: 8010001 | B15: 80100 | C15: ABBEVILLE | F15: =F1*100+14 -> 
A16: 9115001 | B16: 91150 | C16: ABBEVILLE LA RIVIERE | F16: =F1*100+15 -> 
A17: 5480001 | B17: 54800 | C17: ABBEVILLE LES CONFLANS | F17: =F1*100+16 -> 
A18: 6048001 | B18: 60480 | C18: ABBEVILLE ST LUCIEN | F18: =F1*100+17 -> 
A19: 2531001 | B19: 25310 | C19: ABBEVILLERS | F19: =F1*100+18 -> 
A20: 3429001 | B20: 34290 | C20: ABEILHAN | F20: =F1*100+19 -> 
A21: 7030001 | B21: 70300 | C21: ABELCOURT | F21: =F1*100+20 -> 
A22: 6416001 | B22: 64160 | C22: ABERE
A23: 3950001 | B23: 39500 | C23: ABERGEMENT LA RONCE
A24: 3960001 | B24: 39600 | C24: ABERGEMENT LE GRAND
A25: 3980001 | B25: 39800 | C25: ABERGEMENT LE PETIT
A26: 3911001 | B26: 39110 | C26: ABERGEMENT LES THESY
A27: 3912001 | B27: 39120 | C27: ABERGEMENT ST JEAN
A28: 2987001 | B28: 29870 | C28: ABERWRACH
A29: 6415001 | B29: 64150 | C29: ABIDOS
A30: 3716001 | B30: 37160 | C30: ABILLY
A31: 6439001 | B31: 64390 | C31: ABITAIN
A32: 2430001 | B32: 24300 | C32: ABJAT SUR BANDIAT
A33: 6215301 | B33: 62153 | C33: ABLAIN ST NAZAIRE
A34: 8032001 | B34: 80320 | C34: ABLAINCOURT PRESSOIRE
A35: 6211601 | B35: 62116 | C35: ABLAINZEVELLE
A36: 5124001 | B36: 51240 | C36: ABLANCOURT
A37: 9545001 | B37: 95450 | C37: ABLEIGES
A38: 7866001 | B38: 78660 | C38: ABLIS
A39: 1460001 | B39: 14600 | C39: ABLON
A40: 9448001 | B40: 94480 | C40: ABLON SUR SEINE
A41: 4238001 | B41: 42380 | C41: ABOEN
A42: 5411501 | B42: 54115 | C42: ABONCOURT
A43: 5792001 | B43: 57920 | C43: ABONCOURT
A44: 7050001 | B44: 70500 | C44: ABONCOURT GESINCOURT
A45: 5759001 | B45: 57590 | C45: ABONCOURT SUR SEILLE
A46: 7436001 | B46: 74360 | C46: ABONDANCE
A47: 2857001 | B47: 28570 | C47: ABONDANT
A48: 6436001 | B48: 64360 | C48: ABOS
A49: 5756001 | B49: 57560 | C49: ABRESCHVILLER
A50: 320001 | B50: 03200 | C50: ABREST
A51: 546001 | B51: 05460 | C51: ABRIES
A52: 5921501 | B52: 59215 | C52: ABSCON
A53: 1650001 | B53: 16500 | C53: ABZAC
A54: 3323001 | B54: 33230 | C54: ABZAC
A55: 2525001 | B55: 25250 | C55: ACCOLANS
A56: 8946001 | B56: 89460 | C56: ACCOLAY
A57: 716001 | B57: 07160 | C57: ACCONS
A58: 6449001 | B58: 64490 | C58: ACCOUS
A59: 5734001 | B59: 57340 | C59: ACHAIN
A60: 5741001 | B60: 57410 | C60: ACHEN
A61: 6720401 | B61: 67204 | C61: ACHENHEIM
A62: 1825001 | B62: 18250 | C62: ACHERES
A63: 7826001 | B63: 78260 | C63: ACHERES
A64: 7776001 | B64: 77760 | C64: ACHERES LA FORET
A65: 280001 | B65: 02800 | C65: ACHERY
A66: 8056001 | B66: 80560 | C66: ACHEUX EN AMIENOIS
A67: =B67*100+1 -> 8021001 | B67: 80210 | C67: ACHEUX EN VIMEU
A68: 6232001 | B68: 62320 | C68: ACHEVILLE
A69: 7018001 | B69: 70180 | C69: ACHEY
A70: 6221701 | B70: 62217 | C70: ACHICOURT
A71: 6212101 | B71: 62121 | C71: ACHIET LE GRAND
A72: 6212101 | B72: 62121 | C72: ACHIET LE PETIT
A73: 5811001 | B73: 58110 | C73: ACHUN
A74: 6069001 | B74: 60690 | C74: ACHY
A75: 3569001 | B75: 35690 | C75: ACIGNE
A76: 2780001 | B76: 27800 | C76: ACLOU
A77: 2757001 | B77: 27570 | C77: ACON
A78: 9760001 | B78: 97600 | C78: ACOUA
A79: 6214401 | B79: 62144 | C79: ACQ
A80: 1422001 | B80: 14220 | C80: ACQUEVILLE
A81: 5044001 | B81: 50440 | C81: ACQUEVILLE
A82: 2740001 | B82: 27400 | C82: ACQUIGNY
A83: 6238001 | B83: 62380 | C83: ACQUIN WESTBECOURT
A84: 220001 | B84: 02200 | C84: ACY
A85: 6062001 | B85: 60620 | C85: ACY EN MULTIEN
A86: 830001 | B86: 08300 | C86: ACY ROMANCE
A87: 5758001 | B87: 57580 | C87: ADAINCOURT
A88: 7811301 | B88: 78113 | C88: ADAINVILLE
A89: 2536001 | B89: 25360 | C89: ADAM LES PASSAVANT
A90: 2553001 | B90: 25530 | C90: ADAM LES VERCEL
A91: 6732001 | B91: 67320 | C91: ADAMSWILLER
A92: 6526001 | B92: 65260 | C92: ADAST
A93: 6510001 | B93: 65100 | C93: ADE
A94: 5738001 | B94: 57380 | C94: ADELANGE
A95: 7020001 | B95: 70200 | C95: ADELANS ET LE VAL DE BITH
A96: 6524001 | B96: 65240 | C96: ADERVIELLE POUCHERGUES
A97: 7920001 | B97: 79200 | C97: ADILLY
A98: 6211601 | B98: 62116 | C98: ADINFER
A99: 3423001 | B99: 34230 | C99: ADISSAN
A100: 8827001 | B100: 88270 | C100: ADOMPT
A101: 4523001 | B101: 45230 | C101: ADON
A102: 8643001 | B102: 86430 | C102: ADRIERS
A103: 9439001 | B103: 94390 | C103: AEROPORT D ORLY
A104: 2016701 | B104: 20167 | C104: AFA
A105: 9871901 | B105: 98719 | C105: AFAAHITI
A106: 1926001 | B106: 19260 | C106: AFFIEUX
A107: 5480001 | B107: 54800 | C107: AFFLEVILLE
A108: 6917001 | B108: 69170 | C108: AFFOUX
A109: 5474001 | B109: 54740 | C109: AFFRACOURT
A110: 6238001 | B110: 62380 | C110: AFFRINGUES
A111: 3123001 | B111: 31230 | C111: AGASSAC
A112: 8353001 | B112: 83530 | C112: AGAY
A113: 3430001 | B113: 34300 | C113: AGDE
A114: 3421001 | B114: 34210 | C114: AGEL
A115: 4700001 | B115: 47000 | C115: AGEN
A116: 1263001 | B116: 12630 | C116: AGEN D AVEYRON
A117: 2170001 | B117: 21700 | C117: AGENCOURT
A118: 8037001 | B118: 80370 | C118: AGENVILLE
A119: 8015001 | B119: 80150 | C119: AGENVILLERS
A120: 5234001 | B120: 52340 | C120: AGEVILLE
A121: 2141001 | B121: 21410 | C121: AGEY
A122: 2027001 | B122: 20270 | C122: AGHIONE
A123: 5477001 | B123: 54770 | C123: AGINCOURT
A124: 4735001 | B124: 47350 | C124: AGME
A125: 4780001 | B125: 47800 | C125: AGNAC
A126: 4310001 | B126: 43100 | C126: AGNAT
A127: 5018001 | B127: 50180 | C127: AGNEAUX
A128: 6060001 | B128: 60600 | C128: AGNETZ
A129: 6216101 | B129: 62161 | C129: AGNEZ LES DUISANS
A130: 234001 | B130: 02340 | C130: AGNICOURT ET SECHELLES
A131: =B131*100+1 -> 6269001 | B131: 62690 | C131: AGNIERES
A132: 8029001 | B132: 80290 | C132: AGNIERES
A133: 525001 | B133: 05250 | C133: AGNIERES EN DEVOLUY
A134: 3815001 | B134: 38150 | C134: AGNIN
A135: 6440001 | B135: 64400 | C135: AGNOS
A136: 6221701 | B136: 62217 | C136: AGNY
A137: 5023001 | B137: 50230 | C137: AGON COUTAINVILLE
A138: 2446001 | B138: 24460 | C138: AGONAC
A139: 3419001 | B139: 34190 | C139: AGONES
A140: 321001 | B140: 03210 | C140: AGONGES
A141: 1735001 | B141: 17350 | C141: AGONNAY
A142: 6540001 | B142: 65400 | C142: AGOS VIDALOS
A143: 1611001 | B143: 16110 | C143: AGRIS
A144: 1750001 | B144: 17500 | C144: AGUDELLE
A145: 1252001 | B145: 12520 | C145: AGUESSAC
A146: 219001 | B146: 02190 | C146: AGUILCOURT
A147: 8147001 | B147: 81470 | C147: AGUTS
A148: 1440001 | B148: 14400 | C148: AGY
A149: 6422001 | B149: 64220 | C149: AHAXE ALCIETTE BASCASSAN
A150: 6421001 | B150: 64210 | C150: AHETZE
A151: 8850001 | B151: 88500 | C151: AHEVILLE
A152: 5394001 | B152: 53940 | C152: AHUILLE
A153: 2315001 | B153: 23150 | C153: AHUN
A154: 2112101 | B154: 21121 | C154: AHUY
A155: 5914901 | B155: 59149 | C155: AIBES
A156: 2575001 | B156: 25750 | C156: AIBRE
A157: 6412001 | B157: 64120 | C157: AICIRITS CAMOU SUHAST
A158: 7923001 | B158: 79230 | C158: AIFFRES
A159: 3070001 | B159: 30700 | C159: AIGALIERS
A160: 809001 | B160: 08090 | C160: AIGLEMONT
A161: 3911001 | B161: 39110 | C161: AIGLEPIERRE
A162: 2712001 | B162: 27120 | C162: AIGLEVILLE
A163: 451001 | B163: 04510 | C163: AIGLUN
A164: 691001 | B164: 06910 | C164: AIGLUN
A165: 3229001 | B165: 32290 | C165: AIGNAN
A166: 2151001 | B166: 21510 | C166: AIGNAY LE DUC
A167: 3421001 | B167: 34210 | C167: AIGNE
A168: 7265001 | B168: 72650 | C168: AIGNE
A169: 1471001 | B169: 14710 | C169: AIGNERVILLE
A170: 3155001 | B170: 31550 | C170: AIGNES
A171: 1619001 | B171: 16190 | C171: AIGNES ET PUYPEROUX
A172: 8021001 | B172: 80210 | C172: AIGNEVILLE
A173: 5115001 | B173: 51150 | C173: AIGNY
A174: 7937001 | B174: 79370 | C174: AIGONNAY
A175: 1614001 | B175: 16140 | C175: AIGRE
A176: 3128001 | B176: 31280 | C176: AIGREFEUILLE
A177: 1729001 | B177: 17290 | C177: AIGREFEUILLE D AUNIS
A178: 4414001 | B178: 44140 | C178: AIGREFEUILLE SUR MAINE
A179: 3035001 | B179: 30350 | C179: AIGREMONT
A180: 5240001 | B180: 52400 | C180: AIGREMONT
A181: 7824001 | B181: 78240 | C181: AIGREMONT
A182: 8980001 | B182: 89800 | C182: AIGREMONT
A183: 7361001 | B183: 73610 | C183: AIGUEBELETTE LE LAC
A184: 7322001 | B184: 73220 | C184: AIGUEBELLE
A185: 7326001 | B185: 73260 | C185: AIGUEBLANCHE
A186: 8120001 | B186: 81200 | C186: AIGUEFONDE
A187: 6326001 | B187: 63260 | C187: AIGUEPERSE
A188: 6979001 | B188: 69790 | C188: AIGUEPERSE
A189: 924001 | B189: 09240 | C189: AIGUES JUNTES
A190: 3022001 | B190: 30220 | C190: AIGUES MORTES
A191: 960001 | B191: 09600 | C191: AIGUES VIVES
A192: 1180001 | B192: 11800 | C192: AIGUES VIVES
A193: 3067001 | B193: 30670 | C193: AIGUES VIVES
A194: 3421001 | B194: 34210 | C194: AIGUES VIVES
A195: =B195*100+1 -> 3076001 | B195: 30760 | C195: AIGUEZE
A196: 4300001 | B196: 43000 | C196: AIGUILHE
A197: 547001 | B197: 05470 | C197: AIGUILLES
A198: 4719001 | B198: 47190 | C198: AIGUILLON
A199: 8363001 | B199: 83630 | C199: AIGUINES
A200: 3614001 | B200: 36140 | C200: AIGURANDE
... 4300 more rows

Sheet mode d'emploi
C2: mode d'emploi
A8: Pour créé un nouveau conctact clicker sur
A11: Remplisser la fiche après avoir terminer clicker
A16: la ligne apparaitera sur la ligne 5 et ensuite clicker sur
A19: et votre nouveau contcat ce trouve dans l'annuaire classe par ordre alphabéthique

Sheet Annuaire
G1: Annuaire Téléphonique
A3: Nom | B3: DEX | C3: DSCC | D3: MAIL | E3: Portable | F3: Portable 2 | G3: Code | H3: Téléphone | I3: Téléphone 2 | J3: Rue | K3: N° | L3: Cp | M3: Ville | N3: Fonction | O3: Informations
A5: A
A6: B
A8: C
A10: D
A14: E
A15: F
A16: G
A17: H
A19: I
A20: J
A21: K
A22: L
A27: M
A29: N
A31: O
A33: P
A34: R
A36: S
A37: T
A38: U
A39: V
A40: W
A41: X
A42: Y
A43: Z

Sheet Feuil1 (hidden)
